bitfinex/quotes_ETHUSD_20260109
["timestamp","ask_amount","ask_price","bid_price","bid_amount"]
[1767948032242,7.3867705,3100.3,3099.5,0.253]
[1767948032243,0.04032388,3099.9,3099.5,0.253]
[1767948032441,0.97600359,3100.2,3099.5,0.253]
[1767948032603,1.71871264,3100.2,3099.5,0.253]
[1767948033105,3.22570239,3100.1,3099.5,0.253]
[1767948033304,0.04032258,3100.0,3099.5,0.253]
[1767948033534,0.95128256,3099.9,3099.5,0.253]
[1767948033744,0.95128256,3099.7,3099.5,0.253]
[1767948034930,0.95128256,3100.0,3099.5,3.47930671]
[1767948035450,0.95128256,3100.0,3099.5,0.253]
[1767948038135,0.95128256,3100.0,3099.5,3.47932391]
[1767948038337,0.95128256,3100.0,3099.5,0.253]
[1767948038518,0.95128256,3100.0,3099.5,3.47931702]
[1767948038845,4.17681829,3100.3,3099.5,3.47931702]
[1767948039149,0.001,3099.7,3099.5,3.47931702]
[1767948039854,3.22543075,3100.4,3099.5,7.61653153]
[1767948039855,0.04031737,3100.4,3099.5,7.61653153]
[1767948040016,0.04031607,3100.5,3099.5,7.61653153]
[1767948041039,0.04031607,3100.5,3099.6,0.91088769]
[1767948041238,0.04031607,3100.5,3099.8,3.22601458]
[1767948042658,0.95128256,3100.4,3099.3,0.91288769]
[1767948042872,0.99160123,3100.3,3099.4,0.253]
[1767948043029,0.99160123,3100.3,3099.5,0.253]
[1767948043736,0.95128256,3100.2,3099.5,0.253]
[1767948043944,0.04032127,3100.1,3099.5,3.47931915]
[1767948044263,3.96973708,3100.3,3099.5,3.47931915]
[1767948044264,0.04031737,3100.4,3099.5,6.70564597]
[1767948044430,0.95128256,3100.5,3099.5,7.61653366]
[1767948045054,4.1766174,3100.5,3099.5,7.36353366]
[1767948045256,0.04031737,3100.4,3099.6,0.253]
[1767948045461,4.91678895,3100.5,3099.6,0.253]
[1767948045851,4.91678895,3100.5,3099.6,3.47921684]
[1767948046046,0.04031737,3100.4,3099.6,0.253]
[1767948046239,0.04031737,3100.4,3099.6,3.47921765]
[1767948047660,1.69145411,3100.5,3099.6,8.41752411]
[1767948047861,0.04031737,3100.4,3099.6,8.41752411]
[1767948048169,0.04031477,3100.6,3099.6,8.41752411]
[1767948048372,3.26556902,3100.6,3099.6,5.19130138]
[1767948048870,6.49082327,3100.6,3099.6,5.19130138]
[1767948049036,0.74230435,3100.5,3099.6,5.19130138]
[1767948049240,0.04031737,3100.4,3099.6,5.19130138]
[1767948049942,0.04031737,3100.4,3099.6,8.41752411]
[1767948050456,0.04031737,3100.4,3099.6,5.19130138]
[1767948050843,3.26571558,3100.4,3099.6,5.19130138]
[1767948051052,3.26571558,3100.4,3099.6,1.96508373]
[1767948051377,0.9332202,3100.3,3099.7,0.253]
[1767948051546,0.04031997,3100.2,3099.8,0.253]
[1767948053679,0.9332202,3100.3,3099.8,0.253]
[1767948056391,0.9322202,3100.2,3099.8,0.253]
[1767948056688,0.97254017,3100.2,3099.8,0.253]
[1767948057054,0.04031997,3100.2,3099.8,0.253]
[1767948057604,0.001,3100.3,3099.8,0.253]
[1767948058491,4.61892179,3100.3,3099.9,0.253]
[1767948058982,3.00035597,3100.2,3099.9,0.253]
[1767948059307,0.04032127,3100.1,3099.9,0.253]
[1767948059610,0.04031997,3100.2,3099.9,0.253]
[1767948060393,0.42088443,3100.3,3099.9,0.253]
[1767948060603,0.001,3100.3,3099.9,3.25335597]
[1767948060754,0.001,3100.3,3099.9,0.253]
[1767948062054,0.04131867,3100.3,3099.9,0.253]
[1767948062864,0.04131867,3100.3,3100.0,0.253]
[1767948062865,1.78343611,3100.3,3100.0,0.253]
[1767948063980,0.78374511,3100.3,3100.0,0.253]
[1767948064182,0.04131867,3100.3,3100.0,0.253]
[1767948065350,0.999691,3100.9,3100.1,3.00003453]
[1767948065569,0.999691,3101.1,3100.1,0.90059354]
[1767948065776,1.03803829,3101.0,3100.1,0.90059354]
[1767948065983,1.03803829,3101.0,3100.1,1.96112523]
[1767948066485,1.03803829,3101.0,3100.1,1.06053169]
[1767948066685,1.03803829,3101.0,3099.5,4.12689826]
[1767948066854,1.03803829,3101.0,3099.6,3.47922051]
[1767948067054,1.03803829,3101.0,3099.6,3.47913871]
[1767948067282,6.44974038,3100.9,3099.8,0.90059354]
[1767948067476,1.78681616,3100.8,3099.8,0.90059354]
[1767948067674,0.999691,3100.7,3099.8,0.90059354]
[1767948067880,0.03834729,3100.6,3099.8,0.90059354]
[1767948068598,0.03834729,3100.6,3099.8,7.3526227]
[1767948068770,0.999691,3100.7,3099.8,7.3526227]
[1767948069098,0.03834729,3100.6,3099.9,0.73526227]
[1767948069293,0.03834729,3100.6,3099.9,1.63585581]
[1767948069498,3.22491016,3100.9,3100.0,0.9328516]
[1767948069791,0.03834729,3100.8,3100.1,0.253]
[1767948070156,1.03803829,3100.8,3100.1,0.253]
[1767948071016,4.22466858,3100.8,3100.1,0.253]
[1767948071201,4.26301587,3100.8,3100.1,0.253]
[1767948072527,1.03803829,3100.8,3100.1,0.253]
[1767948073088,3.22478176,3101.0,3100.2,0.90059354]
[1767948073089,3.22481088,3101.0,3100.2,0.90059354]
[1767948073317,3.26315817,3101.0,3100.2,0.90059354]
[1767948073815,4.26284917,3101.0,3100.1,3.47869593]
[1767948074539,4.26284917,3101.0,3100.1,4.37928947]
[1767948074814,0.999691,3101.0,3100.2,0.90059354]
[1767948075003,0.999691,3101.0,3100.3,0.76049919]
[1767948075206,0.001,3100.7,3100.3,0.76049919]
[1767948076786,0.001,3100.7,3100.4,3.22539027]
[1767948078090,3.2245007,3101.3,3100.4,7.35137408]
[1767948078091,0.03834729,3101.2,3100.4,7.35137408]
[1767948078289,0.03834729,3101.2,3100.5,1.06418733]
[1767948078500,0.03834729,3101.2,3100.6,0.253]
[1767948078917,0.03834729,3101.2,3100.7,0.253]
[1767948079225,0.03834729,3101.2,3100.5,4.03640281]
[1767948079537,0.03834729,3101.2,3100.6,0.253]
[1767948079706,0.999691,3101.3,3100.7,0.253]
[1767948079907,0.999691,3101.2,3100.7,0.253]
[1767948080817,0.999691,3101.0,3100.0,0.90059354]
[1767948081044,0.999691,3100.5,3099.5,0.002]
[1767948081204,0.999691,3100.5,3099.6,0.253]
[1767948082123,0.999691,3100.5,3099.5,0.002]
[1767948082124,0.999691,3100.5,3099.7,0.253]
[1767948083145,0.03834729,3100.6,3099.7,4.37969846]
[1767948083351,3.22494355,3100.9,3099.9,0.90059354]
[1767948083352,4.22459864,3100.9,3099.9,0.90059354]
[1767948083560,3.22490764,3100.9,3100.0,0.9328516]
[1767948083713,7.44950628,3100.9,3099.8,1.66117755]
[1767948084051,0.999691,3100.8,3099.9,0.0322591]
[1767948084259,0.999691,3100.8,3099.8,1.66117755]
[1767948084429,1.74462846,3100.8,3099.8,1.66117755]
[1767948084616,1.74462846,3100.8,3099.9,0.0322591]
[1767948084818,0.03834729,3100.7,3099.8,1.66117755]
[1767948085126,0.03834729,3100.7,3099.9,0.253]
[1767948085665,0.03834729,3100.7,3099.9,1.15359354]
[1767948086233,0.03834729,3100.7,3099.9,1.99021246]
[1767948086612,0.03834729,3100.7,3100.0,0.253]
[1767948086845,0.42625161,3101.2,3100.0,0.253]
[1767948086846,4.22450445,3101.0,3100.0,1.15359354]
[1767948087149,4.26293116,3100.9,3100.0,4.37932383]
[1767948087720,3.22471597,3101.1,3100.1,0.93285056]
[1767948087920,4.22440697,3101.1,3100.2,0.76373873]
[1767948088451,0.001,3100.4,3100.2,1.66433227]
[1767948089342,0.001,3100.4,3100.2,4.88992844]
[1767948089763,0.001,3100.4,3100.2,0.76373873]
[1767948090216,0.001,3100.4,3100.0,3.4787761]
[1767948090814,0.001,3100.4,3099.9,0.83661892]
[1767948091120,0.001,3100.4,3100.1,0.253]
[1767948092728,0.001,3100.4,3099.7,4.12666049]
[1767948092934,0.001,3100.4,3099.8,0.253]
[1767948093859,0.001,3100.4,3099.8,3.47900562]
[1767948095828,0.001,3100.4,3099.9,0.253]
[1767948097263,0.03934729,3100.4,3099.9,0.253]
[1767948097948,3.95442619,3100.0,3099.5,0.002]
[1767948098154,3.95442619,3100.0,3099.6,0.253]
[1767948098471,0.95548066,3100.0,3099.6,0.253]
[1767948098673,0.95548066,3100.3,3099.6,0.253]
[1767948098975,0.99382795,3100.3,3099.5,0.002]
[1767948099265,0.99382795,3100.3,3099.6,0.253]
[1767948099971,0.95548066,3100.2,3099.6,0.253]
[1767948100340,0.001,3100.1,3099.6,0.253]
[1767948100572,0.001,3100.1,3099.6,3.82734231]
[1767948100773,0.001,3100.1,3099.6,0.60113222]
[1767948104619,0.001,3100.1,3099.6,3.82734625]
[1767948105667,0.001,3100.1,3099.6,0.60113222]
[1767948105990,0.001,3100.1,3099.6,3.82735331]
[1767948106192,0.001,3100.1,3099.7,0.38293533]
[1767948107290,0.001,3100.1,3099.6,0.60113222]
[1767948109319,0.001,3100.1,3099.6,4.7423337]
[1767948110601,0.001,3100.1,3099.7,0.91498697]
[1767948111975,0.001,3100.1,3099.6,0.60113222]
[1767948112171,0.001,3100.1,3099.9,0.002]
[1767948112373,0.93472093,3099.9,3099.0,0.002]
[1767948112574,0.93472093,3099.9,3098.3,0.002]
[1767948112575,7.16045234,3099.1,3098.8,0.253]
[1767948112821,7.16045234,3099.1,3098.3,0.255]
[1767948113115,7.16045234,3099.1,3098.3,0.002]
[1767948113312,7.16045234,3099.1,3098.3,0.44177717]
[1767948113483,0.93472093,3099.0,3098.3,0.44177717]
[1767948114372,6.22573141,3099.1,3098.3,0.44177717]
[1767948114373,3.22678588,3099.1,3098.3,0.44177717]
[1767948114635,7.38758277,3099.4,3098.4,0.91498697]
[1767948114916,4.16115185,3099.4,3098.4,4.14243561]
[1767948115119,4.92521013,3099.4,3098.4,5.24881697]
[1767948115911,4.92521013,3099.4,3098.3,3.4407227]
[1767948115912,0.93472093,3099.3,3098.3,0.255]
[1767948116270,0.93472093,3099.0,3098.3,0.255]
[1767948116683,0.93472093,3098.9,3098.3,0.255]
[1767948117277,4.16128817,3099.3,3098.4,0.03227472]
[1767948117576,7.38785541,3099.3,3098.4,1.68073123]
[1767948117781,7.38785541,3099.3,3098.4,0.76574426]
[1767948117984,0.93472093,3099.2,3098.4,0.76574426]
[1767948118375,0.93472093,3099.2,3098.3,0.002]
[1767948118886,3.22667131,3099.2,3098.3,0.91698697]
[1767948119092,3.22667131,3099.2,3098.3,0.002]
[1767948119093,7.38806355,3099.2,3098.3,0.002]
[1767948119386,0.93472093,3099.1,3098.3,0.002]
[1767948119592,0.93472093,3099.0,3098.3,0.002]
[1767948120914,4.16165994,3099.0,3098.3,0.002]
[1767948121488,4.16129118,3099.3,3098.3,0.91698697]
[1767948121697,0.29134729,3099.2,3098.3,0.91698697]
[1767948121890,1.22406823,3099.2,3098.3,0.91698697]
[1767948123117,7.67738061,3099.2,3098.3,0.91698697]
[1767948123279,7.67738061,3099.2,3098.3,0.002]
[1767948123280,0.99715952,3099.1,3098.3,0.002]
[1767948123482,1.03550681,3099.0,3098.3,0.002]
[1767948123893,1.03550681,3099.0,3098.6,0.002]
[1767948124318,4.32180009,3099.2,3098.6,0.002]
[1767948124685,0.99715952,3099.5,3098.6,0.002]
[1767948125018,3.47948764,3099.4,3098.6,0.002]
[1767948125194,4.51499445,3099.4,3098.6,0.002]
[1767948125594,7.74148209,3099.4,3098.6,0.002]
[1767948125799,0.99715952,3099.3,3098.6,0.002]
[1767948126121,1.03550681,3099.2,3098.6,0.002]
[1767948126286,1.03550681,3099.2,3098.3,0.002]
[1767948126495,0.99715952,3098.9,3098.3,0.002]
[1767948126794,0.99715952,3098.7,3097.8,3.22807643]
[1767948126998,4.22433398,3098.7,3097.8,3.22807643]
[1767948127222,4.22433398,3098.7,3097.7,0.002]
[1767948127223,0.99715952,3098.5,3097.7,0.002]
[1767948127423,0.99715952,3098.3,3097.7,0.002]
[1767948128617,0.46461542,3098.6,3097.7,0.002]
[1767948128618,0.99715952,3098.5,3097.7,0.002]
[1767948128817,0.253,3098.4,3097.7,0.002]
[1767948129061,7.45149375,3098.7,3097.7,0.92967305]
[1767948129245,3.22715977,3098.7,3097.8,0.92767305]
[1767948129617,3.47999373,3098.9,3097.8,0.92767305]
[1767948129812,3.47999373,3098.9,3098.0,0.92767305]
[1767948130257,7.70414698,3098.9,3098.0,0.92767305]
[1767948130430,0.99715952,3098.4,3097.7,0.002]
[1767948130613,0.45100048,3098.3,3097.7,0.002]
[1767948130818,0.253,3098.3,3097.7,0.002]
[1767948131034,3.22768058,3098.2,3097.7,0.002]
[1767948131238,6.45536116,3098.2,3097.7,0.002]
[1767948131440,6.45536116,3098.2,3097.0,0.002]
[1767948131441,1.03910042,3097.9,3097.0,0.002]
[1767948131640,0.99715952,3097.5,3097.0,0.002]
[1767948132390,0.99715952,3097.5,3096.4,0.002]
[1767948133347,4.22559077,3097.5,3096.4,3.23146984]
[1767948133558,0.99715952,3097.5,3096.4,3.23146984]
[1767948133742,0.99715952,3097.5,3096.4,0.002]
[1767948133743,0.99715952,3097.3,3096.4,0.002]
[1767948134084,0.99715952,3097.1,3096.4,0.002]
[1767948134989,0.99515953,3097.1,3096.4,0.002]
[1767948135479,3.22893122,3097.0,3096.4,0.002]
[1767948135684,0.99715952,3096.9,3096.4,0.002]
[1767948135890,0.99715952,3096.9,3095.7,4.15993054]
[1767948135891,0.99715952,3096.9,3095.7,0.002]
[1767948136183,9.68679366,3097.0,3095.7,1.18267305]
[1767948136184,0.99715952,3096.7,3095.7,1.18267305]
[1767948136475,0.99715952,3096.7,3095.7,0.92967305]
[1767948136703,0.99715952,3096.7,3093.1,1.74440779]
[1767948136704,0.99715952,3096.2,3093.1,1.74440779]
[1767948136844,0.99715952,3095.6,3094.1,0.92767305]
[1767948137045,0.99715952,3095.6,3095.1,0.002]
[1767948137271,3.23080899,3095.2,3094.4,0.253]
[1767948137474,0.0419409,3095.5,3094.4,0.253]
[1767948137687,3.23055714,3095.5,3094.4,0.253]
[1767948137985,0.99715952,3096.5,3094.7,0.92767305]
[1767948138165,0.99715952,3096.4,3094.7,0.92767305]
[1767948138370,0.17426617,3096.6,3094.9,0.92767305]
[1767948138572,0.17426617,3096.6,3095.1,0.92767305]
[1767948138884,1.25015952,3096.5,3095.2,0.253]
[1767948139083,0.99715952,3096.3,3095.2,0.253]
[1767948139244,3.22976551,3096.2,3095.1,3.23091337]
[1767948139449,0.99715952,3096.1,3095.0,0.253]
[1767948139946,0.99715952,3096.1,3095.0,3.48401307]
[1767948140351,3.22970019,3096.3,3095.0,3.48401307]
[1767948140352,3.22970019,3096.3,3095.1,0.92767305]
[1767948140693,4.11175874,3096.3,3095.2,0.76427039]
[1767948141553,4.11175874,3096.3,3095.3,3.23070461]
[1767948141883,0.88205855,3096.3,3095.3,0.92767305]
[1767948142058,3.48247525,3096.5,3095.3,0.92767305]
[1767948142386,0.253,3096.5,3095.3,0.92767305]
[1767948142751,3.22945634,3096.5,3095.3,0.92767305]
[1767948142951,3.4419925,3096.6,3095.3,0.92767305]
[1767948143147,0.99715952,3096.1,3094.3,0.92767305]
[1767948143378,0.99715952,3095.9,3094.8,3.23120942]
[1767948143694,0.99715952,3095.9,3094.9,0.253]
[1767948143695,3.23018282,3095.8,3094.9,0.253]
[1767948144281,4.22727695,3095.9,3094.9,0.253]
[1767948144584,0.36746744,3095.8,3094.9,0.253]
[1767948145353,0.99715952,3095.9,3094.9,0.253]
[1767948145853,0.99715952,3095.9,3095.0,3.23101777]
[1767948146264,4.22728824,3095.9,3094.9,0.253]
[1767948146476,4.22728824,3095.9,3094.9,3.48411082]
[1767948146689,5.01135351,3095.9,3094.9,3.48411082]
[1767948147192,0.78406527,3095.9,3094.9,4.41178387]
[1767948147375,0.03834729,3095.9,3094.9,4.15878387]
[1767948147580,0.03834729,3095.9,3095.0,0.253]
[1767948147869,0.99715952,3095.8,3095.0,0.253]
[1767948148067,0.99715952,3095.8,3093.0,1.67258476]
[1767948148068,1.03550681,3095.8,3094.0,0.92767305]
[1767948148280,1.03550681,3095.8,3094.8,3.23117308]
[1767948148281,0.99715952,3095.8,3094.8,3.23117308]
[1767948148474,0.03834729,3095.7,3094.7,4.41195342]
[1767948148680,0.99715952,3096.1,3094.8,0.92767305]
[1767948148868,0.99715952,3096.1,3094.7,0.253]
[1767948148869,0.99715952,3096.1,3095.0,4.15864445]
[1767948149081,1.03550681,3096.0,3094.8,3.23112963]
[1767948149315,1.03550681,3096.0,3094.9,3.23109541]
[1767948149515,0.42653948,3095.9,3094.9,3.48410597]
[1767948149798,0.46488677,3095.9,3095.0,3.23097997]
[1767948150401,0.46488677,3095.9,3095.1,0.253]
[1767948150602,0.99715952,3095.8,3095.1,0.253]
[1767948150899,1.03550681,3095.7,3095.1,0.253]
[1767948151103,0.001,3096.2,3095.2,0.92767305]
[1767948151268,0.03934729,3096.2,3095.2,0.92767305]
[1767948151600,0.03934729,3096.2,3095.3,0.253]
[1767948151601,1.03650681,3096.2,3095.3,0.253]
[1767948151905,1.03650681,3096.2,3094.9,7.38985832]
[1767948151906,0.99715952,3095.6,3093.8,0.92767305]
[1767948152066,0.99715952,3095.6,3092.7,0.94992265]
[1767948152067,0.99715952,3094.7,3092.7,0.94992265]
[1767948152266,0.99715952,3094.7,3093.8,3.23224897]
[1767948152499,3.51284527,3095.3,3093.6,1.18067305]
[1767948152500,1.25015952,3095.0,3093.6,1.18067305]
[1767948152896,0.95288233,3094.9,3093.6,0.253]
[1767948153081,0.95288233,3094.9,3093.5,3.23254215]
[1767948153082,0.95288233,3094.8,3093.0,0.95927413]
[1767948153282,0.95288233,3094.8,3093.1,0.253]
[1767948153508,0.95288233,3094.8,3093.5,3.23251988]
[1767948153708,0.95288233,3093.3,3090.8,3.23538675]
[1767948153908,0.16,3094.7,3090.8,3.23538675]
[1767948153909,0.95288233,3094.6,3092.2,0.95927413]
[1767948154114,0.95288233,3094.4,3092.8,0.95927413]
[1767948154427,0.95288233,3094.4,3092.9,0.95927413]
[1767948154583,0.95288233,3094.4,3092.8,0.253]
[1767948155416,0.95288233,3094.2,3092.8,0.253]
[1767948155620,0.95288233,3094.0,3092.8,0.253]
[1767948155915,0.95288233,3094.0,3092.7,6.46684126]
[1767948156118,0.95288233,3094.0,3092.6,0.253]
[1767948156119,0.95288233,3094.0,3092.6,3.23350772]
[1767948156297,0.95288233,3093.9,3092.6,6.4670329]
[1767948156819,0.95288233,3093.9,3092.6,3.23350772]
[1767948157119,0.95288233,3093.9,3092.7,0.32335077]
[1767948157120,0.95088234,3093.9,3092.7,0.32335077]
[1767948157339,0.95088234,3093.9,3092.7,0.57635077]
[1767948157542,0.95288233,3093.8,3092.0,0.95927413]
[1767948157835,1.20688233,3093.8,3092.2,0.95927413]
[1767948158125,4.43925079,3093.8,3092.3,3.23382938]
[1767948158297,0.95288233,3093.7,3092.3,3.23382938]
[1767948158498,3.48613299,3094.0,3092.4,4.7261194]
[1767948158700,1.02108697,3094.0,3092.5,0.95927413]
[1767948158908,3.23206205,3094.0,3092.5,0.95927413]
[1767948159102,0.95288233,3093.9,3092.5,0.95927413]
[1767948159309,0.95288233,3093.9,3092.4,0.254]
[1767948159730,0.95288233,3093.9,3092.2,3.23391081]
[1767948159731,0.99482323,3093.7,3092.2,3.23391081]
[1767948159931,0.95288233,3093.2,3091.7,0.95927413]
[1767948160134,0.95288233,3093.2,3092.0,0.254]
[1767948160307,0.95288233,3093.2,3092.6,0.002]
[1767948160514,0.95288233,3092.8,3091.4,0.002]
[1767948160696,0.95288233,3093.7,3091.7,4.1937105]
[1767948161052,0.95288233,3093.5,3091.8,0.99682751]
[1767948161235,0.95288233,3093.5,3091.9,4.4721194]
[1767948161440,0.95288233,3093.5,3091.9,0.95927413]
[1767948161640,0.95288233,3093.5,3092.0,0.19561016]
[1767948162255,0.95288233,3093.4,3092.0,0.19561016]
[1767948162418,0.99482323,3093.4,3092.0,0.19561016]
[1767948163222,0.99482323,3093.4,3091.8,0.99682751]
[1767948163223,0.95288233,3093.1,3091.8,0.99682751]
[1767948163419,0.99482323,3093.0,3091.8,3.48828721]
[1767948163815,0.99482323,3092.6,3091.5,0.56486486]
[1767948164041,0.99482323,3092.3,3091.5,0.56486486]
[1767948164241,4.1868258,3092.2,3091.5,0.56486486]
[1767948164553,0.77166955,3092.2,3090.8,3.76684527]
[1767948164724,0.254,3092.7,3091.2,3.51284527]
[1767948165052,0.0419409,3092.5,3091.4,3.23672173]
[1767948165253,0.0419409,3092.0,3091.4,0.002]
[1767948165451,0.0419409,3091.8,3091.4,0.002]
[1767948165649,0.0419409,3091.6,3091.4,0.002]
[1767948165857,0.0419409,3091.7,3091.4,0.002]
[1767948166164,0.95288233,3091.2,3090.0,3.28619639]
[1767948166327,3.23379413,3092.4,3090.1,0.32861964]
[1767948166328,0.95288233,3091.7,3090.1,0.32861964]
[1767948166521,0.0419409,3091.5,3090.1,0.58261964]
[1767948166735,1.24882323,3091.7,3090.1,0.254]
[1767948166922,1.02987216,3092.1,3090.4,3.51284527]
[1767948167130,0.98793126,3092.1,3090.5,0.97239281]
[1767948167433,0.98793126,3092.1,3090.5,1.22639281]
[1767948167434,0.0419409,3091.6,3090.5,1.22639281]
[1767948167760,0.0419409,3091.5,3090.5,0.254]
[1767948168178,0.0419409,3091.3,3090.5,0.254]
[1767948168652,0.0419409,3091.3,3090.0,0.05]
[1767948168653,0.0419409,3090.9,3090.0,0.05]
[1767948168820,0.0419409,3091.3,3090.0,0.37864474]
[1767948169022,0.0419409,3091.1,3090.1,3.23606838]
[1767948169223,0.0419409,3091.5,3090.1,0.97239281]
[1767948169454,0.0419409,3091.2,3090.0,0.05]
[1767948169618,0.0419409,3091.2,3090.2,0.254]
[1767948170023,0.0419409,3091.2,3090.3,0.34900696]
[1767948170254,4.26488185,3091.2,3090.0,0.05]
[1767948170458,1.02987216,3090.8,3090.0,0.05]
[1767948170626,1.02987216,3090.8,3089.3,0.97239281]
[1767948170627,1.02987216,3090.6,3089.3,0.254]
[1767948171029,0.0419409,3090.4,3089.3,0.254]
[1767948171229,1.02987216,3090.6,3089.3,0.254]
[1767948171428,0.0419409,3090.4,3089.3,0.254]
[1767948171862,0.0419409,3090.9,3089.7,4.48523808]
[1767948172164,0.0419409,3091.6,3089.7,4.48523808]
[1767948172165,1.02987216,3091.8,3090.2,6.40351159]
[1767948172325,0.0419409,3091.7,3090.3,0.254]
[1767948172528,0.0419409,3091.7,3090.4,1.02389084]
[1767948172862,3.27270979,3091.8,3090.4,1.02389084]
[1767948173063,0.03834729,3091.8,3090.4,1.02389084]
[1767948173249,0.03834729,3091.8,3090.3,0.002]
[1767948173450,0.03834729,3091.8,3090.4,0.254]
[1767948174164,0.03834729,3091.8,3090.3,0.002]
[1767948174165,0.98793126,3091.6,3090.3,0.002]
[1767948174369,0.0419409,3090.4,3090.0,0.002]
[1767948174544,0.0419409,3090.9,3090.0,0.002]
[1767948175632,0.0419409,3090.8,3090.0,0.002]
[1767948175864,0.98793126,3090.6,3090.0,0.002]
[1767948176433,0.0419409,3090.9,3090.0,0.002]
[1767948176658,0.0419409,3091.0,3090.0,0.002]
[1767948176858,0.0419409,3090.9,3090.0,0.002]
[1767948177057,0.0419409,3090.9,3090.1,0.254]
[1767948177277,0.0419409,3090.9,3090.0,0.002]
[1767948177463,0.0419409,3090.9,3090.1,0.254]
[1767948178468,0.0419409,3090.9,3090.1,3.49010208]
[1767948178673,0.0419409,3090.5,3090.0,0.002]
[1767948178873,0.0419409,3090.3,3089.8,0.254]
[1767948179073,0.0419409,3090.1,3089.6,0.254]
[1767948179654,0.0419409,3090.1,3088.8,0.97239281]
[1767948179863,0.0419409,3090.5,3089.3,3.23696945]
[1767948180043,0.0419409,3090.3,3089.4,0.32369695]
[1767948180238,0.0419409,3090.5,3089.4,0.32369695]
[1767948180445,0.0419409,3090.3,3089.5,0.254]
[1767948180651,0.0419409,3090.3,3088.7,0.97439281]
[1767948180861,0.0419409,3090.2,3088.8,3.49146867]
[1767948181061,0.0419409,3090.3,3088.7,0.97439281]
[1767948181399,0.37390257,3090.3,3089.0,3.23723594]
[1767948181542,0.37390257,3090.3,3088.7,0.002]
[1767948181543,3.51284527,3089.4,3088.7,0.002]
[1767948181879,0.03994091,3089.2,3088.7,0.002]
[1767948182038,0.0419409,3089.4,3088.7,0.002]
[1767948182239,0.254,3090.0,3088.7,0.002]
[1767948182240,0.37390257,3090.3,3088.7,0.002]
[1767948182564,0.37390257,3090.3,3088.8,0.254]
[1767948182763,0.0419409,3090.5,3089.0,0.98800579]
[1767948182940,0.03834729,3090.4,3089.1,0.70408511]
[1767948183140,0.0419409,3090.7,3089.2,0.03237084]
[1767948183463,0.03834729,3090.6,3089.2,1.02037663]
[1767948183678,3.23487674,3091.4,3089.2,1.02037663]
[1767948183679,0.0419409,3091.5,3090.1,3.51284527]
[1767948183880,0.96918357,3092.1,3090.2,0.28636036]
[1767948183881,0.08028819,3092.0,3090.2,0.28636036]
[1767948184185,0.08028819,3092.0,3090.4,4.50085106]
[1767948184186,0.03834729,3092.0,3090.4,4.50085106]
[1767948184484,0.0419409,3092.6,3090.9,9.70591089]
[1767948184686,0.03834729,3092.9,3091.0,0.98800579]
[1767948184887,3.23253678,3093.6,3091.5,4.67915042]
[1767948184888,0.92724267,3093.6,3091.5,4.67915042]
[1767948185087,0.03834729,3093.5,3091.6,1.45592083]
[1767948185398,0.03834729,3093.5,3091.7,0.98800579]
[1767948185687,0.0419409,3093.8,3091.9,4.67915042]
[1767948185688,0.03834729,3093.8,3091.9,4.67915042]
[1767948185891,6.50289183,3093.8,3092.0,0.254]
[1767948186094,4.15921971,3094.1,3092.1,1.24200579]
[1767948186267,0.77746402,3094.0,3092.2,0.49331504]
[1767948186585,0.03834729,3094.0,3092.3,6.46767778]
[1767948186791,3.27001464,3094.4,3092.4,4.67915042]
[1767948186995,0.03834729,3094.4,3092.5,0.98800579]
[1767948187324,0.03834729,3094.4,3092.6,0.254]
[1767948187488,1.58158409,3094.3,3092.7,0.254]
[1767948187695,0.03834729,3094.2,3092.8,0.254]
[1767948189268,3.27022905,3094.2,3092.8,0.254]
[1767948189592,6.50211081,3094.2,3092.9,0.254]
[1767948189761,6.46376352,3094.2,3092.9,0.254]
[1767948189961,0.781642,3094.1,3092.9,0.254]
[1767948190193,0.781642,3094.1,3093.0,0.254]
[1767948190896,6.4641241,3094.0,3092.3,3.23381806]
[1767948191069,0.03834729,3093.9,3092.4,0.254]
[1767948191784,0.96558996,3093.9,3092.2,0.49331504]
[1767948191996,0.96558996,3093.9,3091.5,3.69114463]
[1767948191997,0.92724267,3093.3,3091.7,3.23436519]
[1767948192302,0.03834729,3093.2,3091.8,0.254]
[1767948192677,0.03834729,3093.2,3091.8,3.48835215]
[1767948192995,6.46600496,3093.1,3091.5,3.23467572]
[1767948193200,0.03834729,3093.0,3091.9,0.254]
[1767948193399,0.65043523,3092.9,3091.4,0.0323478]
[1767948193598,0.03834729,3092.8,3091.5,0.28634675]
[1767948193766,0.03834729,3092.7,3091.5,0.254]
[1767948194196,0.03834729,3092.7,3091.6,0.254]
[1767948194779,0.03834729,3092.8,3091.4,3.23475192]
[1767948194982,3.23342063,3092.7,3091.5,3.48862823]
[1767948195181,0.36552408,3092.6,3091.5,3.48862823]
[1767948195475,0.36552408,3092.6,3091.4,3.23474772]
[1767948195675,0.36552408,3092.6,3091.5,0.254]
[1767948195901,0.36552408,3092.6,3091.5,3.48867167]
[1767948196103,0.92724267,3092.5,3090.1,0.98800579]
[1767948196318,0.92724267,3092.0,3090.1,0.98800579]
[1767948196470,0.92724267,3092.0,3090.3,3.23587101]
[1767948196802,0.92724267,3092.0,3090.4,3.48981273]
[1767948196991,0.92724267,3091.8,3090.4,3.48981273]
[1767948197163,0.92724267,3091.6,3090.3,3.26824814]
[1767948197367,0.92724267,3091.6,3090.5,0.254]
[1767948197700,0.92724267,3091.6,3090.6,0.254]
[1767948198068,0.92724267,3091.6,3089.5,3.23671156]
[1767948198069,0.92724267,3091.6,3089.6,3.69114463]
[1767948198274,0.92724267,3091.6,3089.9,3.23627788]
[1767948198583,0.92724267,3091.6,3090.0,0.35226424]
[1767948198911,0.92724267,3091.6,3090.0,3.58848524]
[1767948199217,3.48790801,3092.3,3090.0,6.85709364]
[1767948199218,0.92724267,3091.4,3090.0,6.85709364]
[1767948199507,0.92724267,3092.1,3090.1,3.72350604]
[1767948199712,0.92724267,3092.1,3090.2,0.254]
[1767948200023,0.92724267,3091.9,3090.3,0.254]
[1767948200187,0.92724267,3091.9,3090.4,0.03235827]
[1767948200389,0.92724267,3091.9,3090.3,0.254]
[1767948201581,0.92724267,3091.7,3090.3,6.47179408]
[1767948201786,0.92724267,3091.7,3090.4,0.254]
[1767948201983,0.92724267,3091.7,3090.5,0.39063329]